[Event "SixDays Budapest January-IMB 2023"]
[Site "Budapest"]
[Date "2023.01.24"]
[Round "2.3"]
[White "Papp, Levente"]
[Black "La Barbera, Manfredi"]
[Result "1-0"]
[ECO "A15"]
[WhiteElo "2391"]
[BlackElo "1961"]
[Annotator "TA"]
[PlyCount "45"]
[EventDate "2023.01.23"]
[EventType "tourn"]
[EventCountry "HUN"]
[SourceTitle "playchess.com"]
[Source "ChessBase"]
[SourceQuality "1"]
[TimeControl "5400+30"]

{[%evp 13,45,27,45,34,51,39,44,37,45,27,33,25,77,72,73,71,122,107,144,144,141,118,141,97,303,295,230,230,402,405,382,352,350,348]} 1. c4 {[%emt 0:04:10]} Nf6 {[%emt 0:00:18]} 2. g3 {[%emt 0:02:14]} e6 {[%emt 0:00:16]} 3. Bg2 {[%emt 0:00:10]} d5 {[%emt 0:00:09]} 4. Nf3 {[%emt 0:00:11]} c5 {[%emt 0:00:23]} 5. cxd5 {[%emt 0:01:44]} exd5 {[%emt 0:00:15]} 6. O-O {[%emt 0:00:08]} Nc6 {[%emt 0:02:23]} 7. d4 {[%emt 0:00:53]} Bg4 {[%emt 0:07:41]} 8. Ne5 {[%emt 0:03:50] D30: Queen's Gambit Declined: Systems without Nc3.} Be6 {[%emt 0:14:10]} (8... Nxd4 $2 9. Nxg4 (9. Nc3 Be6 $14) 9... Nxg4 10. e3 $18) 9. Nxc6 {[%emt 0:09:03]} (9. Be3 $5 {[%cal Re5c6]}) 9... bxc6 {[%emt 0:00:03]} 10. Qc2 {[%emt 0:00:51] White is slightly better.} Qb6 {[%emt 0:19:59]} 11. dxc5 {[%emt 0:05:12]} Bxc5 {[%emt 0:06:00]} 12. Nc3 {[%emt 0:00:56] [#] Threatens to win with Na4.} Bd6 {[%emt 0:05:43] [#]} (12... Be7 $11) 13. Bg5 $146 {[%emt 0:04:47]} ({Predecessor:} 13. Be3 Qc7 14. Rac1 Rc8 15. Qa4 O-O 16. Rfd1 Qd7 17. Qxa7 Rc7 18. Qa4 Bh3 19. Bd4 Bxg2 20. Kxg2 {1-0 Menezes,C (2308)-Herndlbauer,M (2110) AUT-chT2O 1415 2014 (8.5)}) 13... Nd7 {[%emt 0:04:20]} 14. Rac1 {[%emt 0:17:01][%cal Oc3d5] Strongly threatening Nxd5!} Ne5 {[%emt 0:07:17]} (14... Qa5 $142) 15. Na4 {[%emt 0:06:37]} Qc7 {[%emt 0:04:34]} 16. f4 {[%emt 0:11:02][%cal Bf2f4,Bf4f5][%mdl 32]} Nc4 {[%emt 0:00:13]} 17. f5 {[%emt 0:00:09]} Bd7 {[%emt 0:00:13]} 18. e4 {[%emt 0:03:17][%cal Be2e4,Be4d5,Bd5c6][%mdl 32]} h6 $2 {[%emt 0:04:52] [#] This costs Black the game.} (18... O-O $16) 19. exd5 $18 {[%emt 0:01:22]} hxg5 {[%emt 0:00:14]} 20. Qxc4 {[%emt 0:00:47][%cal Rd5c6]} O-O $2 {[%emt 0:03:13]} (20... c5 {is a better defense.} 21. f6 (21. Nxc5 O-O $18) 21... g6 22. Rfe1+ (22. Nxc5 O-O $18) 22... Kf8 23. Nxc5 Kg8 24. Nxd7 Qxd7) 21. dxc6 {[%emt 0:00:15]} Bc8 {[%emt 0:00:11]} 22. Kh1 {[%emt 0:05:16]} a5 {[%emt 0:00:09]} 23. Qg4 {[%emt 0:01:19] Weighted Error Value: White=0.08 (flawless) /Black=0.40} 1-0

[Event "SixDays Budapest January-IMB 2023"]
[Site "Budapest"]
[Date "2023.01.24"]
[Round "2.4"]
[White "Jakab, Attila"]
[Black "Urhegyi, Marton"]
[Result "0-1"]
[ECO "A57"]
[WhiteElo "2308"]
[BlackElo "2253"]
[Annotator "TA"]
[PlyCount "44"]
[EventDate "2023.01.23"]
[EventType "tourn"]
[EventCountry "HUN"]
[SourceTitle "playchess.com"]
[Source "ChessBase"]
[SourceQuality "1"]
[TimeControl "5400+30"]

{[%evp 25,44,8,10,0,2,-12,-9,-6,0,0,68,16,42,-189,-175,-486,-482,-498,-482,-752,-743]} 1. d4 {[%emt 0:13:12]} Nf6 {[%emt 0:00:15]} 2. c4 {[%emt 0:00:05]} c5 {[%emt 0:00:07]} 3. d5 {[%emt 0:00:06]} b5 {[%emt 0:00:06]} 4. cxb5 {[%emt 0:00:05]} a6 {[%emt 0:00:06][%cal Ba7a6,Ba6b5,Bb5b4][%mdl 32]} 5. f3 {[%emt 0:00:18]} axb5 {[%emt 0:00:21]} 6. e4 {[%emt 0:00:05]} Qa5+ {[%emt 0:00:18]} 7. Bd2 {[%emt 0:00:18]} b4 {[%emt 0:00:17]} 8. Na3 {[%emt 0:00:09]} d6 {[%emt 0:01:11]} 9. Nc4 {[%emt 0:00:07]} Qd8 {[%emt 0:00:11]} 10. a3 {[%emt 0:03:44]} e6 {[%emt 0:00:14]} 11. dxe6 {[%emt 0:01:09]} Bxe6 {[%emt 0:03:32]} 12. axb4 {[%emt 0:00:08]} Rxa1 {[%emt 0:00:06]} 13. Qxa1 {[%emt 0:00:03]} d5 {[%emt 0:01:09]} 14. exd5 {[%emt 0:02:52] A57: Benko/Volga Gambit.} Nxd5 {[%emt 0:00:53]} 15. Ne5 {[%emt 0:01:07]} Bd6 {[%emt 0:17:37][%mdl 1024] Black has compensation.} 16. Bb5+ {[%emt 0:00:42] The position is equal.} Kf8 {[%emt 0:01:22][%cal Od5b4] [#] ...Nxb4! is the strong threat.} 17. Nd3 {[%emt 0:03:56] [#]} Qh4+ $146 {[%emt 0:19:36]} ({Don't take} 17... Bd7 18. Bxd7 Nxd7 19. Qa6 $16) (17... cxb4 $11 18. Qa7 Bd7) ({Predecessor:} 17... c4 18. Nc5 Qh4+ 19. Kf1 Bxc5 20. bxc5 Qd4 21. Qc1 Ne7 22. Ne2 Qxc5 23. Ba4 Nd5 {½-½ Collyer,C (2259)-Lee,M (2304) Washington State-ch 2009 (3)}) 18. Kf1 {[%emt 0:03:14]} ({Better is} 18. g3 $1 $14 Bxg3+ 19. Kf1) 18... Nc7 {[%emt 0:11:55]} 19. g3 $2 {[%emt 0:03:46] [#] Now White is beyond hope.} (19. Be1 $14 Qd4 20. Ne2) 19... Qd4 $1 $36 {[%emt 0:17:15][%mdl 2048] Black is in control.} 20. Qa5 {[%emt 0:00:41]} (20. Ne2 Qd5 21. Kf2 cxb4 22. Bxb4 Bxb4 23. Nxb4 Qc5+ 24. Kg2) 20... c4 {[%emt 0:01:50] Black is clearly winning.} 21. Nf4 {[%emt 0:04:43] aiming for Bc3.} Qxd2 {[%emt 0:01:20]} 22. Qb6 {[%emt 0:00:04] Prevents Bc5.} (22. Nge2 $142) 22... Ke7 {[%emt 0:04:41] Weighted Error Value: White=1.15/Black=0.17 (very precise)} 0-1

[Event "SixDays Budapest January-IMB 2023"]
[Site "Budapest"]
[Date "2023.01.24"]
[Round "2.5"]
[White "Farkas, Gabor"]
[Black "Semprun Martinez, Fernando"]
[Result "1-0"]
[ECO "B30"]
[WhiteElo "2321"]
[BlackElo "2106"]
[Annotator "TA"]
[PlyCount "99"]
[EventDate "2023.01.23"]
[EventType "tourn"]
[EventCountry "HUN"]
[SourceTitle "playchess.com"]
[Source "ChessBase"]
[SourceQuality "1"]
[TimeControl "5400+30"]

{[%evp 12,99,41,16,17,26,20,15,20,-8,-12,-4,-4,-9,-15,-9,-28,-32,-4,0,0,-43,-20,-39,-10,-19,-18,-52,-51,-81,-69,-60,-62,-108,-101,-130,-114,-139,-127,-133,-71,-80,-79,-91,-33,-114,-54,-66,-58,-44,7,-8,41,25,24,10,27,0,11,0,2,0,10,9,16,20,20,16,11,11,13,7,25,27,47,47,31,0,0,2,118,108,132,122,118,0,0,-54,-64,-56]} 1. Nf3 {[%emt 0:25:44]} c5 {[%emt 0:02:35]} 2. e4 {[%emt 0:00:05]} Nc6 {[%emt 0:00:04]} 3. c3 {[%emt 0:00:04]} Nf6 {[%emt 0:02:52]} 4. e5 {[%emt 0:00:42]} Nd5 {[%emt 0:00:02]} 5. d4 {[%emt 0:00:41]} cxd4 {[%emt 0:00:01]} 6. cxd4 {[%emt 0:00:10]} g6 {[%emt 0:00:18]} 7. Nc3 {[%emt 0:02:42]} (7. Qb3 $5 {[%cal Rb3d5]} e6 8. Nc3 $14) 7... Nxc3 {[%emt 0:00:59] B22: Sicilian: 2 c3.} 8. bxc3 {[%emt 0:00:06]} Bg7 {[%emt 0:03:16]} 9. Bf4 {[%emt 0:00:50]} O-O {[%emt 0:12:25] The position is equal.} 10. d5 {[%emt 0:03:55]} Na5 {[%emt 0:01:05]} 11. Be2 {[%emt 0:00:49]} d6 {[%emt 0:01:40]} 12. O-O {[%emt 0:02:29]} Bg4 {[%emt 0:02:10] [#]} 13. exd6 $146 {[%emt 0:05:25]} ({Predecessor:} 13. Qd4 b6 14. Ba6 Bxf3 15. gxf3 Qc7 16. Rfe1 Rfd8 17. Bg3 dxe5 18. Bxe5 Bxe5 19. Qxe5 {½-½ Yuzhakov,O (2353)-Tarlev,K (2544) Mendeleev Memorial 3rd 2012 (8)}) 13... exd6 {[%emt 0:01:08]} 14. Rc1 {[%emt 0:03:42]} Bxf3 {[%emt 0:04:52]} 15. Bxf3 {[%emt 0:00:51]} Rc8 {[%emt 0:00:05]} 16. Qd3 {[%emt 0:08:45] Repels b5} Qf6 {[%emt 0:03:40]} 17. Be3 {[%emt 0:02:40]} b6 {[%emt 0:06:37]} (17... Nc4 $5 {[%cal Rc4e3]}) 18. c4 {[%emt 0:00:36]} Rc7 {[%emt 0:11:03]} 19. c5 {[%emt 0:05:02]} dxc5 {[%emt 0:03:48]} (19... bxc5 20. Qa3 Nb7 21. Qxa7 $11) 20. Qd2 {[%emt 0:02:43]} Qd6 {[%emt 0:13:30]} 21. Rfe1 {[%emt 0:05:52] Threatens to win with Bf4.} Be5 {[%emt 0:01:30] Wards off Bf4} 22. Bh6 {[%emt 0:01:59] [#]} (22. g3 $15 {should be considered.}) 22... Re8 $1 $17 {[%emt 0:02:58]} (22... Bxh2+ $2 23. Kh1 $18) 23. Kh1 {[%emt 0:03:13]} Rce7 {[%emt 0:00:49][%cal Oa5c4]} 24. Bg5 {[%emt 0:01:31]} f6 {[%emt 0:01:36]} 25. Be3 {[%emt 0:01:41][%cal Oe3c5] [#]} c4 {[%emt 0:01:26]} (25... Bxh2 26. g3 Bxg3 27. fxg3 Qxg3 28. Qf2 Qxf2 29. Bxf2 $15) (25... Nb7 $142 $1 26. g3 Qd7) 26. g3 {[%emt 0:04:56]} c3 {[%emt 0:01:59]} 27. Qd3 {[%emt 0:00:33]} Qb4 {[%emt 0:05:03]} (27... Kg7 $17) 28. Bg2 {[%emt 0:04:06]} (28. d6 $1 $15 Qxd6 29. Rxc3) 28... Qc4 {[%emt 0:03:22]} ({Black should play} 28... Nc4 $17 29. Bf1 Nxe3 30. Rxe3 Bd4 31. Rxe7 Rxe7) 29. Qc2 $15 {[%emt 0:02:48]} Nb7 {[%emt 0:01:58]} (29... Kg7 {keeps more tension.} 30. Red1 Nb7 31. Bf1 Qg4) 30. Red1 $1 {[%emt 0:00:31][%cal Od5d6,Be1d1,Bd1d3,Bd3c3,Bc3c4][%mdl 32] Black must now prevent d6!} Bd6 {[%emt 0:05:26]} (30... Kg7 $15) 31. Rd3 {[%emt 0:03:05]} (31. Qxc3 {simplifies} Qxc3 32. Rxc3 Kg7 33. Bf3) 31... Nc5 {[%emt 0:02:07]} (31... Rc8 $11) 32. Rxc3 $14 {[%emt 0:00:26]} Qg4 {[%emt 0:00:01]} 33. Rc4 {[%emt 0:01:20]} Qd7 {[%emt 0:00:12]} 34. Qc3 {[%emt 0:02:31]} Be5 {[%emt 0:01:08]} 35. Qd2 {[%emt 0:00:44]} Bd6 {[%emt 0:01:09]} 36. Qd4 {[%emt 0:00:35]} Be5 {[%emt 0:00:02]} 37. Qh4 {[%emt 0:01:00]} Nb7 {[%emt 0:02:23][%cal Bc5b7,Bb7d8,Bd8f7,Bf7d6,Bd6f5][%mdl 32]} 38. Rc6 {[%emt 0:02:06][%cal Od5d6]} Nd8 {[%emt 0:01:53]} 39. Rc8 {[%emt 0:01:06][%cal Od5d6]} Nf7 {[%emt 0:00:32]} 40. Rxe8+ {[%emt 0:00:54]} Rxe8 {[%emt 0:00:10]} 41. Qc4 {[%emt 0:00:35]} Nd6 {[%emt 0:00:36]} 42. Qb3 {[%emt 0:00:33]} Kg7 {[%emt 0:00:40]} 43. f4 {[%emt 0:00:44]} Bb2 {[%emt 0:00:41][%mdl 64] Deflection} 44. Rb1 {[%emt 0:00:29]} (44. Rc6 $5 {[%cal Re3g1]} Ba1 45. Qd3 $16) 44... Nf5 {[%emt 0:00:53]} 45. Bxb6 {[%emt 0:00:47] Threatening Bg1. This pair of bishops is nice.} (45. Bf2 $5 Bd4 $8 46. Bxd4 Nxd4 47. Qd3 $11) 45... Bd4 {[%emt 0:01:18]} (45... Rb8 $11 {keeps the balance.} 46. Qxb2 Rxb6) 46. Bxd4 $16 {[%emt 0:00:10]} Nxd4 {[%emt 0:00:01]} 47. Qd3 {[%emt 0:00:31]} Qa4 {[%emt 0:00:50]} 48. h3 (48. Rb7+ $16 Kf8 49. h4 (49. Rxh7 Re1+ 50. Bf1 Qxa2 $11)) 48... Nf5 $11 {And now ...Re3 would win.} 49. d6 {[%emt 0:01:33]} (49. Qc3 $11 Re2 50. a3) 49... Re3 $1 $15 {[%emt 0:01:25][%mdl 1024] Black has compensation.} 50. Qd2 $1 {[%emt 0:00:10][%mdl 32768] Weighted Error Value: White=0.17 (very precise) /Black=0.15 (very precise) . Loss on time!?} ({Not} 50. Rb7+ $2 Kh6 51. Qb1 Nxg3+ 52. Kg1 (52. Kh2 $2 Qxf4 53. Rb4 Qxd6 $19) 52... Qd4 $19) 1-0

[Event "SixDays Budapest January-IMB 2023"]
[Site "Budapest"]
[Date "2023.01.24"]
[Round "3.1"]
[White "Semprun Martinez, Fernando"]
[Black "Daroczi, Donat"]
[Result "0-1"]
[ECO "B75"]
[WhiteElo "2106"]
[BlackElo "2148"]
[Annotator "TA"]
[PlyCount "46"]
[EventDate "2023.01.23"]
[EventType "tourn"]
[EventCountry "HUN"]
[SourceTitle "playchess.com"]
[Source "ChessBase"]
[SourceQuality "1"]
[TimeControl "5400+30"]

{[%evp 14,46,60,56,60,25,34,-29,-20,-12,54,50,30,25,39,0,38,34,106,73,199,208,213,170,200,177,184,144,133,-383,-345,-534,-537,-907,-616]} 1. e4 {[%emt 0:00:03]} c5 {[%emt 0:00:48]} 2. Nf3 {[%emt 0:00:08]} d6 {[%emt 0:00:10]} 3. d4 {[%emt 0:00:05]} cxd4 {[%emt 0:00:04]} 4. Nxd4 {[%emt 0:00:03]} Nf6 {[%emt 0:00:08]} 5. Nc3 {[%emt 0:00:01]} g6 {[%emt 0:00:21]} 6. Be3 {[%emt 0:00:01]} Bg7 {[%emt 0:03:01]} 7. f3 {[%emt 0:00:01]} a6 {[%emt 0:00:35]} 8. Qd2 {[%emt 0:00:35]} h5 {[%emt 0:00:10] B75: Sicilian Dragon: Yugoslav Attack, Miscellaneous.} 9. O-O-O {[%emt 0:00:39] 9.Be2 gains popularity.} b5 {[%emt 0:01:15] [#]} 10. a4 $146 {[%emt 0:02:34]} ({Better is} 10. Nd5 $14) ({Predecessor:} 10. a3 Bb7 11. h3 Nbd7 12. Bd3 h4 13. f4 Rc8 14. f5 Rxc3 15. Qxc3 Nxe4 16. Qe1 {1-0 Fier,A (2564)-Gokerkan,C (2465) Online Olym Div Top-D rapid 2021 (7.4)}) 10... bxa4 {[%emt 0:12:12] Black has an edge.} 11. Nxa4 {[%emt 0:00:26]} Nbd7 {[%emt 0:03:23]} ({Black should try} 11... Bd7 $11 12. Nc3 Nc6) 12. Nc6 $14 {[%emt 0:14:13]} Qc7 {[%emt 0:00:24]} 13. Qc3 {[%emt 0:01:02][%cal Of1c4]} Kf8 {[%emt 0:15:02][%cal Of6d5] aiming for ...Nd5!} (13... Bb7 14. Na5 Qxc3 15. Nxc3 $16) 14. Bd4 {[%emt 0:07:37]} h4 {[%emt 0:14:05]} 15. Na5 $36 {[%emt 0:10:00][%mdl 2048] White has some pressure.} Qd8 {[%emt 0:07:17]} (15... Qxc3 $14 16. Nxc3 Rh5) 16. Bc4 {[%emt 0:15:28] Threatens to win with Bd5.} Rh5 {[%emt 0:00:52] [#] Dodges Bd5} (16... Qc7 $16) 17. Bd5 $1 $18 {[%emt 0:08:36][%mdl 512]} Bh6+ {[%emt 0:04:37]} (17... Nxd5 $2 18. Bxg7+ Kg8 19. exd5 $18) 18. Kb1 {[%emt 0:03:45]} Nxd5 {[%emt 0:00:42]} 19. exd5 {[%emt 0:00:09]} Qe8 {[%emt 0:05:39]} (19... Rxd5 $2 20. Bb6 Bg7 21. Qxg7+ (21. Rxd5 $2 {loses.} Nxb6 22. Qc6 Rb8 $19) 21... Kxg7 22. Bxd8 $18) 20. Qc6 {[%emt 0:17:08]} Rb8 {[%emt 0:01:27] [#]} 21. c4 {[%emt 0:02:14][%mdl 8192] Wards off Rb5} (21. g4 $1 $16 {[%cal Rg4h5] stays on course.} hxg3 22. hxg3) 21... Qd8 $19 {[%emt 0:03:41]} 22. Ba7 {[%emt 0:04:43]} (22. c5 {was worth a try.} Nxc5 23. Nxc5 Qxa5 24. Ne4 Rxd5 25. Bc3) 22... Rb4 {[%emt 0:07:35] Hoping for ...Ne5.} ({Inferior is} 22... Qxa5 23. Bxb8 $17) 23. f4 {[%emt 0:01:48]} Bxf4 {[%emt 0:02:28] Weighted Error Value: White=1.00/Black=0.26 (precise)} 0-1

[Event "SixDays Budapest January-IMB 2023"]
[Site "Budapest"]
[Date "2023.01.24"]
[Round "3.2"]
[White "Urhegyi, Marton"]
[Black "Farkas, Gabor"]
[Result "1/2-1/2"]
[ECO "C45"]
[WhiteElo "2253"]
[BlackElo "2321"]
[Annotator "TA"]
[PlyCount "31"]
[EventDate "2023.01.23"]
[EventType "tourn"]
[EventCountry "HUN"]
[SourceTitle "playchess.com"]
[Source "ChessBase"]
[SourceQuality "1"]
[TimeControl "5400+30"]

{[%evp 14,17,10,11,13,-6]} 1. e4 {[%emt 0:04:03]} e5 {[%emt 0:00:05]} 2. Nf3 {[%emt 0:00:04]} Nc6 {[%emt 0:00:04]} 3. d4 {[%emt 0:00:05]} exd4 {[%emt 0:00:18]} 4. Nxd4 {[%emt 0:00:05]} Bc5 {[%emt 0:00:58]} 5. Nb3 {[%emt 0:00:09]} Bb4+ {[%emt 0:03:56]} 6. c3 {[%emt 0:05:29]} Be7 {[%emt 0:00:13]} 7. c4 {[%emt 0:05:28]} Nf6 {[%emt 0:01:35]} 8. Nc3 {[%emt 0:00:35]} Bb4 {[%emt 0:03:19] A28: English Opening: Four Knights Variation.} 9. f3 {[%emt 0:13:12] [#] An uneventful encounter.} {Predecessor:} O-O $146 10. Be3 Re8 11. Qd2 a5 12. a3 Bxc3 13. Qxc3 d6 14. O-O-O Qe7 15. Nd4 Ne5 16. Nb5 {1-0 Sotelo,N (2062)-Perez Pietronave,C (2236) Villa Martelli op-B 21st 2014 (6)} 1/2-1/2

[Event "SixDays Budapest January-IMB 2023"]
[Site "Budapest"]
[Date "2023.01.24"]
[Round "3.3"]
[White "La Barbera, Manfredi"]
[Black "Jakab, Attila"]
[Result "0-1"]
[ECO "B01"]
[WhiteElo "1961"]
[BlackElo "2308"]
[Annotator "TA"]
[PlyCount "82"]
[EventDate "2023.01.23"]
[EventType "tourn"]
[EventCountry "HUN"]
[SourceTitle "playchess.com"]
[Source "ChessBase"]
[SourceQuality "1"]
[TimeControl "5400+30"]

{[%evp 9,81,41,59,50,56,50,53,33,45,46,50,47,40,40,49,41,45,41,31,24,25,18,23,26,80,71,72,63,85,72,54,22,68,55,51,53,60,81,66,50,59,29,68,79,57,81,282,96,143,137,127,133,167,152,159,141,256,89,88,33,33,-80,-82,-89,-83,-136,-139,-237,-230,-196,-180,-239,-222,-29997]} 1. e4 {[%emt 0:00:10]} d5 {[%emt 0:03:10]} 2. exd5 {[%emt 0:00:11]} Nf6 {[%emt 0:00:04]} 3. d4 {[%emt 0:01:03]} Nxd5 {[%emt 0:00:44]} 4. Nf3 {[%emt 0:02:05]} Bg4 {[%emt 0:00:27]} 5. h3 {[%emt 0:05:58]} Bh5 {[%emt 0:00:10]} 6. Be2 {[%emt 0:05:19] B01: Scandinavian Defence.} e6 {[%emt 0:00:27]} 7. O-O {[%emt 0:04:12]} Bd6 {[%emt 0:00:59]} 8. Bg5 {[%emt 0:13:16] White is slightly better.} f6 {[%emt 0:00:45] [#]} 9. Bd2 $146 {[%emt 0:09:05]} ({Predecessor:} 9. Be3 Nxe3 10. fxe3 Nc6 11. c4 O-O 12. Nc3 Qe8 13. Ne4 Be7 14. Ng3 Bg6 15. Nh4 {1-0 Godoy Baez,H (1386)-Gomez,O (1666) PAR-ch qual2 2018 (7)}) 9... O-O {[%emt 0:03:13]} 10. c4 {[%emt 0:03:35][%cal Bc2c4,Bc4c5][%mdl 32]} Nf4 {[%emt 0:00:16]} 11. c5 {[%emt 0:01:01] Bc4 is the strong threat.} Nxe2+ {[%emt 0:00:12]} 12. Qxe2 {[%emt 0:00:03]} Be7 {[%emt 0:00:11]} 13. Qxe6+ {[%emt 0:01:53]} Kh8 {[%emt 0:00:16] Black is weak on the dark squares} 14. Be3 {[%emt 0:14:05]} Bxf3 {[%emt 0:02:28]} 15. gxf3 {[%emt 0:00:10]} f5 $1 {[%emt 0:00:21]} 16. f4 {[%emt 0:10:31]} Nc6 {[%emt 0:01:24]} (16... Rf6 $11 {keeps the balance.} 17. Qc4 Qe8) 17. Nc3 $16 {[%emt 0:00:47]} Qe8 {[%emt 0:07:23]} 18. Qb3 {[%emt 0:05:29]} Rf6 {[%emt 0:05:38]} 19. Kh2 $1 {[%emt 0:01:00] aiming for d5.} (19. Qxb7 $2 Rb8 20. Qxc7 Rh6 $19) 19... Rh6 {[%emt 0:02:46] ( -> ...Qh5)} 20. Qd1 {[%emt 0:06:26]} (20. Qxb7 Qh5 21. Kg1 Qxh3 22. Qxa8+ Bd8) (20. Ne2 $5 {[%cal Rd4d5]}) 20... Rd8 {[%emt 0:00:59]} (20... Bf6 $11) 21. d5 $14 {[%emt 0:00:44]} Nb4 {[%emt 0:00:25][%cal Ob4c2]} 22. Qf3 {[%emt 0:01:07]} Nc2 {[%emt 0:00:22]} 23. Rac1 {[%emt 0:00:05]} Nxe3 {[%emt 0:00:05]} 24. Qxe3 {[%emt 0:00:05]} Qh5 $1 {[%emt 0:01:15][%cal Oe7c5]} 25. b4 {[%emt 0:01:33]} (25. Qxe7 $2 Qxh3+ 26. Kg1 Qh2#) 25... a5 {[%emt 0:02:21][%cal Oa5b4]} 26. a3 $1 {[%emt 0:04:34][%cal Ba2a3,Ba3b4,Bb4c5][%mdl 32]} (26. Qxe7 $2 Qxh3+ 27. Kg1 Qh2#) 26... axb4 {[%emt 0:01:28]} 27. axb4 {[%emt 0:00:01]} b6 $2 {[%emt 0:00:49]} 28. Ne2 $2 {[%emt 0:02:04]} (28. Qxe7 $2 Qxh3+ 29. Kg1 Qh2#) (28. d6 $18 Bxd6 29. cxd6 Rhxd6 30. Rcd1) 28... Re8 {[%emt 0:21:11] [#]} (28... bxc5 $142 29. bxc5 Bf8) 29. Qd3 $1 $16 {[%emt 0:01:42]} (29. cxb6 $6 cxb6 30. Qd3 Bxb4 $11) 29... bxc5 {[%emt 0:00:20]} 30. bxc5 {[%emt 0:00:06]} g5 {[%emt 0:00:36]} 31. Ng1 {[%emt 0:02:48]} gxf4 {[%emt 0:02:01]} 32. Rfe1 {[%emt 0:00:21][%cal Od5d6] Hoping for d6!} Bh4 {[%emt 0:01:42]} (32... f3 $16 33. Qxf3 (33. Nxf3 $2 Qxh3+ 34. Kg1 Qh1#) 33... Qh4 34. Qc3+ (34. Qxf5 Rh5 $11) 34... Kg8 35. Qg3+ Qxg3+ 36. fxg3 Kf7) 33. Qd4+ $2 {[%emt 0:01:39]} (33. Rxe8+ $18 {has better winning chances.} Qxe8 34. d6 (34. Qxf5 Bxf2 35. d6 cxd6 $11)) 33... Bf6 {[%emt 0:00:49]} 34. Qxf4 {[%emt 0:00:11]} (34. Qd1 $16 {Black must now prevent Qxh5.} Rg8 35. Qxh5 Rxh5 36. Nf3) 34... Rg8 $14 {[%emt 0:00:47]} 35. Re3 {[%emt 0:00:43] [#]} (35. Qf3 $14) 35... Qg5 $1 $17 {[%emt 0:01:49][%csl Gg8][%cal Rg5g2]} ({Resist} 35... Qg6 36. Rg3 (36. Qxc7 $2 Qg2#) 36... Bg5 37. Qe5+ (37. Qxc7 Bxc1 38. Rxg6 Rhxg6 $11) 37... Qf6 38. Qxf6+ (38. Qxc7 $2 {loses.} Bxc1 39. Rxg8+ Kxg8 $19) 38... Rxf6 39. Rc4 $16) 36. Qf3 {[%emt 0:01:38] Against Qg2+} (36. Qxc7 $2 Qg2#) 36... Be5+ {[%emt 0:00:42]} 37. Kh1 {[%emt 0:01:15]} (37. Rxe5 $142 Qxc1 38. Ne2 Qxc5 39. Rxf5) 37... Bf4 $40 {[%emt 0:00:28][%mdl 128] Black has strong attack. Black is much more active.} 38. Rf1 {[%emt 0:00:42]} (38. Ne2 $17 Bxe3 39. fxe3) 38... Bxe3 $19 {[%emt 0:00:56]} 39. fxe3 {[%emt 0:00:09]} c6 {[%emt 0:02:49]} 40. d6 {[%emt 0:01:13]} (40. Ne2 $142) 40... Re6 {[%emt 0:00:34]} 41. Qxc6 $2 {[%emt 0:01:12]} (41. Qf2 $19 Rxe3 42. Nf3) 41... Re4 {[%emt 0:00:21] Weighted Error Value: White=0.46/Black=0.19 (very precise)} 0-1